bitfinex/quotes_SOLUSD_20250912
["timestamp","ask_amount","ask_price","bid_price","bid_amount"]
[1757668501730,0.06,238.3,238.29,30.1965672]
[1757668502042,0.06,238.3,238.29,4.1965672]
[1757668504023,0.06,238.3,238.29,30.1965672]
[1757668504243,0.06,238.3,238.29,31.87501799]
[1757668505518,0.06,238.3,238.29,30.1965672]
[1757668507145,0.06,238.3,238.29,4.1965672]
[1757668514151,0.06,238.3,238.25,32.66]
[1757668514152,0.76,238.3,238.25,32.66]
[1757668514328,0.7,238.29,238.25,32.66]
[1757668514650,0.06,238.3,238.28,26.0]
[1757668515147,0.7,238.29,238.28,26.0]
[1757668515723,0.06,238.3,238.28,30.19674332]
[1757668516153,0.76,238.3,238.28,30.19674332]
[1757668516845,0.06,238.3,238.28,30.19674332]
[1757668517254,0.06,238.3,238.28,30.84674332]
[1757668517432,0.06,238.3,238.28,4.84674332]
[1757668517634,0.06,238.3,238.28,4.87674332]
[1757668518149,0.06,238.3,238.28,4.22674332]
[1757668518868,0.06,238.3,238.29,72.90559401]
[1757668519441,0.06,238.3,238.29,40.24559401]
[1757668519776,0.06,238.3,238.29,72.41559401]
[1757668519935,0.06,238.32,238.29,73.06559401]
[1757668520138,0.06,238.32,238.3,32.82]
[1757668520364,0.06,238.32,238.31,4.19621501]
[1757668520945,0.06,238.32,238.31,30.19621501]
[1757668521170,0.76,238.32,238.31,30.19621501]
[1757668521473,0.06,238.32,238.31,30.19621501]
[1757668524068,0.76,238.32,238.28,10.52185831]
[1757668524269,0.06,238.33,238.3,13.59559401]
[1757668524574,0.06,238.34,238.32,13.59559401]
[1757668524741,0.06,238.35,238.34,13.59559401]
[1757668525136,0.06,238.35,238.34,18.45128084]
[1757668525554,0.06,238.35,238.34,17.79128084]
[1757668525764,0.06,238.35,238.34,30.19568683]
[1757668527981,0.78,238.35,238.34,26.0]
[1757668528188,0.78,238.35,238.32,26.0]
[1757668528382,0.72,238.34,238.32,26.0]
[1757668528694,0.06,238.35,238.32,26.0]
[1757668528695,0.72,238.33,238.32,30.19603893]
[1757668529159,0.72,238.33,238.3,4.19624866]
[1757668529365,0.72,238.32,238.3,4.19624866]
[1757668529683,0.72,238.31,238.3,4.19624866]
[1757668530179,0.72,238.31,238.29,26.0]
[1757668530492,0.72,238.3,238.29,30.19647466]
[1757668530867,0.72,238.33,238.31,26.0]
[1757668533190,0.72,238.31,238.28,26.03]
[1757668533389,0.72,238.31,238.28,30.22670406]
[1757668533896,0.78,238.35,238.28,30.88670406]
[1757668534576,0.78,238.35,238.28,41.37856237]
[1757668535579,0.06,238.35,238.28,41.37856237]
[1757668535778,0.72,238.34,238.28,41.37856237]
[1757668535972,0.78,238.34,238.28,41.37856237]
[1757668537684,0.78,238.34,238.28,40.71856237]
[1757668540494,7.70420547,238.34,238.28,30.22670406]
[1757668540686,4.16851344,238.33,238.28,26.03]
[1757668540871,4.19621501,238.31,238.28,0.03]
[1757668541297,4.16851344,238.3,238.28,0.03]
[1757668541879,0.72,238.29,238.28,0.03]
[1757668543794,0.72,238.31,238.28,0.03]
[1757668544188,0.72,238.3,238.28,0.03]
[1757668544795,0.72,238.29,238.28,0.03]
[1757668550307,0.06,238.34,238.28,0.69]
[1757668551006,0.72,238.33,238.28,0.03]
[1757668551686,0.72,238.32,238.28,0.03]
[1757668552007,0.72,238.31,238.28,0.03]
[1757668552701,0.72,238.31,238.28,4.22674332]
[1757668555287,0.06,238.34,238.29,0.67]
[1757668555612,0.72,238.33,238.28,4.22674332]
[1757668555786,0.72,238.33,238.28,4.89674332]
[1757668556190,0.06,238.34,238.29,0.67]
[1757668557015,0.06,238.34,238.3,14.68736885]
[1757668557209,0.06,238.34,238.31,0.67]
[1757668558792,0.06,238.34,238.3,10.49097775]
[1757668559213,0.06,238.34,238.3,11.16097775]
[1757668561306,0.06,238.34,238.3,4.8663911]
[1757668561517,0.72,238.33,238.28,30.22658417]
[1757668561694,0.06,238.34,238.28,30.22658417]
[1757668561899,0.72,238.32,238.28,30.22658417]
[1757668562412,0.72,238.32,238.28,4.22658417]
[1757668562607,0.78,238.34,238.28,4.22658417]
[1757668562922,0.06,238.34,238.29,0.67]
[1757668564620,0.06,238.34,238.3,14.68736885]
[1757668564919,0.06,238.34,238.31,0.67]
[1757668566015,0.06,238.34,238.32,0.67]
[1757668566622,0.06,238.34,238.33,4.19586287]
[1757668567440,0.78,238.34,238.28,4.22667949]
[1757668567617,0.72,238.33,238.28,4.22667949]
[1757668567805,0.06,238.34,238.28,4.22667949]
[1757668568014,0.72,238.32,238.28,4.22667949]
[1757668568417,0.06,238.34,238.29,26.0]
[1757668568608,0.06,238.34,238.3,4.1963911]
[1757668568801,0.78,238.34,238.3,4.1963911]
[1757668571544,0.72,238.33,238.3,4.1963911]
[1757668572336,0.72,238.32,238.3,4.1963911]
[1757668572726,7.70424767,238.34,238.28,0.03]
[1757668572924,4.16851344,238.33,238.28,0.03]
[1757668573524,0.72,238.32,238.28,0.03]
[1757668574733,0.72,238.31,238.28,0.03]
[1757668574944,4.16851344,238.31,238.28,0.03]
[1757668576137,3.44851344,238.31,238.28,0.03]
[1757668576342,0.72,238.3,238.28,0.03]
[1757668577245,4.16851344,238.3,238.28,0.03]
[1757668577423,0.72,238.29,238.28,0.03]
[1757668579531,4.9165672,238.29,238.28,0.03]
[1757668579731,0.72,238.29,238.28,0.03]
[1757668579937,8.36508064,238.29,238.28,0.03]
[1757668580240,4.16851344,238.29,238.28,0.03]
[1757668583952,8.36508064,238.29,238.28,0.03]
[1757668587265,21.96067465,238.29,238.28,0.03]
[1757668588346,37.12851344,238.29,238.28,0.03]
[1757668588542,8.35492062,238.3,238.28,0.03]
[1757668588737,32.98,238.29,238.28,0.03]
[1757668589649,33.69,238.29,238.28,0.03]
[1757668589983,32.98,238.29,238.28,0.03]
[1757668590147,41.33508064,238.29,238.28,0.03]
[1757668590568,40.09541167,238.29,238.28,0.03]
[1757668591635,39.38541167,238.29,238.28,0.03]
[1757668591836,40.09541167,238.29,238.28,0.03]
[1757668592666,7.11541167,238.29,238.28,0.03]
[1757668593047,40.05541167,238.29,238.28,0.03]
[1757668594243,37.1365672,238.29,238.28,0.03]
[1757668594444,37.8465672,238.29,238.28,0.03]
[1757668595366,0.71,238.29,238.28,0.03]
[1757668595565,32.92,238.29,238.28,0.03]
[1757668595963,6.40525961,238.3,238.28,0.03]
[1757668596256,32.92,238.29,238.28,0.03]
[1757668596468,6.40525961,238.3,238.28,0.03]
[1757668596655,4.90641514,238.3,238.28,0.03]
[1757668596839,32.92,238.29,238.28,0.03]
[1757668598646,32.9,238.29,238.28,0.03]
[1757668605952,131.81,238.32,238.28,0.03]
[1757668606273,32.82,238.31,238.28,0.75]
[1757668606467,131.1,238.32,238.29,0.72]
[1757668606661,32.82,238.31,238.3,0.72]
[1757668607272,131.1,238.32,238.3,0.72]
[1757668607572,32.82,238.31,238.3,0.72]
[1757668610870,32.82,238.31,238.28,0.03]
[1757668611076,32.82,238.31,238.28,0.75]
[1757668611373,32.82,238.31,238.29,0.72]
[1757668612277,32.82,238.31,238.29,4.91648471]
[1757668614478,32.82,238.31,238.29,4.19648471]
[1757668614975,32.82,238.31,238.28,4.22674332]
[1757668615182,32.82,238.31,238.28,4.91674332]
[1757668615351,32.82,238.31,238.29,0.69]
[1757668615755,32.82,238.31,238.3,0.69]
[1757668615960,32.76,238.32,238.3,0.69]
[1757668617276,32.76,238.32,238.28,0.03]
[1757668617484,32.76,238.32,238.29,0.69]
[1757668617777,0.06,238.34,238.3,0.69]
[1757668619380,0.06,238.34,238.31,4.19621501]
[1757668619559,0.06,238.34,238.32,0.69]
[1757668620581,0.69,238.33,238.29,4.19639971]
[1757668620968,0.69,238.32,238.28,4.2267334]
[1757668621181,0.69,238.31,238.28,4.2267334]
[1757668622485,0.69,238.31,238.28,0.03]
[1757668623484,32.72,238.32,238.28,0.03]
[1757668623880,33.41,238.32,238.28,0.03]
[1757668624579,33.41,238.32,238.28,0.72]
[1757668624887,33.41,238.32,238.28,0.03]
[1757668625067,0.69,238.31,238.28,0.03]
[1757668625467,32.72,238.32,238.28,4.22670203]
[1757668625683,33.41,238.32,238.28,4.22670203]
[1757668625878,33.41,238.32,238.28,4.91670203]
[1757668627381,33.41,238.32,238.28,0.03]
[1757668627911,32.72,238.32,238.28,0.03]
[1757668628078,2.20884447,238.29,238.28,0.03]
[1757668628389,34.88884447,238.29,238.28,0.03]
[1757668628696,35.57884447,238.29,238.28,0.03]
[1757668629171,33.37,238.29,238.28,0.03]
[1757668629367,32.68,238.29,238.28,0.03]
[1757668629997,33.37,238.29,238.28,0.03]
[1757668631471,0.69,238.29,238.28,0.03]
[1757668631684,33.35,238.29,238.28,0.03]
[1757668633078,0.69,238.29,238.28,0.03]
[1757668633280,33.35,238.29,238.28,0.03]
[1757668633587,2.89884447,238.29,238.28,0.03]
[1757668633793,35.53884447,238.29,238.28,0.03]
[1757668634374,39.73541167,238.29,238.28,0.03]
[1757668634575,37.5265672,238.29,238.28,0.03]
[1757668634801,7.09541167,238.29,238.28,0.03]
[1757668635032,33.33,238.29,238.28,0.03]
[1757668636303,0.06,238.34,238.28,0.72]
[1757668636505,32.64,238.33,238.28,0.72]
[1757668636691,32.64,238.32,238.29,0.69]
[1757668637285,32.64,238.32,238.28,0.03]
[1757668637491,0.06,238.34,238.29,0.69]
[1757668637784,32.7,238.34,238.29,0.69]
[1757668639298,32.7,238.34,238.3,0.69]
[1757668639492,32.7,238.34,238.31,0.69]
[1757668640313,32.7,238.34,238.31,4.88605541]
[1757668640507,32.7,238.34,238.32,0.69]
[1757668640508,0.06,238.34,238.32,0.69]
[1757668640812,0.06,238.34,238.31,4.19605541]
[1757668641000,0.06,238.34,238.31,4.88605541]
[1757668641510,0.06,238.34,238.31,14.68659294]
[1757668641689,0.06,238.34,238.31,4.19605541]
[1757668643299,0.69,238.33,238.28,26.03]
[1757668643494,0.69,238.32,238.28,26.03]
[1757668643707,2.95884447,238.34,238.28,26.72]
[1757668643901,0.69,238.33,238.28,26.03]
[1757668644090,0.69,238.32,238.28,26.03]
[1757668644287,2.20884447,238.29,238.28,0.03]
[1757668644505,37.04422235,238.29,238.28,0.03]
[1757668644709,13.59559401,238.24,238.22,0.03]
[1757668644898,32.40682104,238.21,238.11,0.1]
[1757668645098,13.59559401,238.2,238.11,0.1]
[1757668645317,2.20884447,238.16,238.11,0.1]
[1757668645818,20.00778443,238.16,238.11,0.1]
[1757668646000,26.0,238.14,238.11,0.1]
[1757668646203,82.66387507,238.14,238.11,0.1]
[1757668646400,83.34387507,238.14,238.11,0.1]
[1757668646624,13.59559401,238.13,238.09,0.03]
[1757668646801,2.20884447,238.1,238.09,0.03]
[1757668647002,39.16876047,238.1,238.09,0.03]
[1757668647212,39.84876047,238.1,238.09,0.03]
[1757668647521,39.84876047,238.1,238.08,1e-08]
[1757668647522,7.08876047,238.1,238.08,1e-08]
[1757668647701,34.96884447,238.09,238.04,0.2]
[1757668648026,2.20884447,238.06,238.04,0.2]
[1757668648523,2.88884447,238.06,238.04,0.2]
[1757668648813,35.64884447,238.06,238.04,0.2]
[1757668649025,39.84946616,238.06,238.04,0.2]
[1757668649231,39.84946616,238.06,238.02,0.03]
[1757668649430,2.20884447,238.03,238.02,0.03]
[1757668649809,2.88884447,238.03,238.02,0.03]
[1757668650015,35.64884447,238.03,238.02,0.03]
[1757668650602,33.44,238.03,238.02,0.03]
[1757668650806,14.70217592,238.06,238.02,0.03]
[1757668651008,39.16999558,238.03,238.02,0.03]
[1757668651514,39.18999558,238.03,238.02,0.03]
[1757668651839,39.18999558,238.03,238.02,0.72]
[1757668652026,39.18999558,238.03,238.02,0.03]
[1757668652439,40.44013798,238.03,238.02,0.03]
[1757668652933,41.12013798,238.03,238.02,0.03]
[1757668653423,8.34013798,238.03,238.02,0.03]
[1757668653628,41.10013798,238.03,238.02,0.03]
[1757668654308,8.34013798,238.03,238.02,0.03]
[1757668654509,41.10013798,238.03,238.02,0.03]
[1757668654723,8.34013798,238.03,238.02,0.03]
[1757668655031,40.42013798,238.03,238.02,0.03]
[1757668655231,7.66013798,238.03,238.02,0.03]
[1757668655721,40.42013798,238.03,238.02,0.03]
[1757668656028,7.66013798,238.03,238.02,0.03]
[1757668656226,40.42013798,238.03,238.02,0.03]
[1757668658830,41.10013798,238.03,238.02,0.03]
[1757668659006,41.08013798,238.03,238.02,0.03]
[1757668659420,41.06013798,238.03,238.02,0.03]
[1757668659611,8.34013798,238.03,238.02,0.03]
[1757668660626,41.06013798,238.03,238.02,0.03]
[1757668661330,8.34013798,238.03,238.02,0.03]
[1757668661539,41.06013798,238.03,238.02,0.03]
[1757668665242,8.34013798,238.03,238.02,0.03]
[1757668665721,41.04013798,238.03,238.02,0.03]
[1757668666734,41.02013798,238.03,238.02,0.03]
[1757668668021,8.34013798,238.03,238.02,0.03]
[1757668668223,41.02013798,238.03,238.02,0.03]
[1757668669021,4.88115111,238.03,238.02,0.03]
[1757668669223,41.02013798,238.03,238.02,0.03]
[1757668669436,8.34013798,238.03,238.02,0.03]
[1757668670231,41.00013798,238.03,238.02,0.03]
[1757668671128,8.34013798,238.03,238.02,0.03]
[1757668671751,41.00013798,238.03,238.02,0.03]
[1757668671927,8.34013798,238.03,238.02,0.03]
[1757668672129,41.00013798,238.03,238.02,0.03]
[1757668672325,54.96200263,238.03,237.99,0.03]
[1757668672530,6.91797374,238.0,237.99,0.03]
[1757668672725,39.57797374,238.0,237.99,0.03]
[1757668672930,40.25797374,238.0,237.99,0.03]
[1757668673636,36.79898687,238.0,237.99,0.03]
[1757668673842,40.25797374,238.0,237.99,0.03]
[1757668674046,41.00066754,238.0,237.99,0.03]
[1757668674458,8.34066754,238.0,237.99,0.03]
[1757668674644,41.00066754,238.0,237.99,0.03]
[1757668676560,8.34066754,238.0,237.99,0.03]
[1757668676763,41.00066754,238.0,237.99,0.03]
[1757668677143,8.34066754,238.0,237.99,0.03]
[1757668677338,41.00066754,238.0,237.99,0.03]
[1757668677533,8.34066754,238.0,237.99,0.03]
[1757668677934,41.00066754,238.0,237.99,0.03]
[1757668678231,44.45965441,238.0,237.99,0.03]
[1757668678452,22.30385609,238.0,237.97,0.03]
[1757668678638,3.45898687,237.98,237.97,0.03]
[1757668679453,36.77898687,237.98,237.97,0.03]
[1757668679758,40.98102065,237.98,237.97,0.03]
[1757668681559,37.52203378,237.98,237.97,0.03]
[1757668681755,10.50420168,238.0,237.97,0.03]
[1757668681756,7.66066754,238.0,237.97,0.72]
[1757668681957,18.16486922,238.0,237.97,0.72]
[1757668682143,32.66,237.99,237.97,0.03]
[1757668682455,14.70588235,238.0,237.97,0.03]
[1757668682664,36.11898687,237.99,237.97,0.72]
[1757668682844,32.66,237.98,237.97,0.72]
[1757668683457,14.70588235,238.0,237.97,0.72]
[1757668683662,4.20203378,237.98,237.97,0.72]
[1757668684135,4.20203378,237.98,237.97,0.03]
[1757668684340,36.86203378,237.98,237.97,0.03]
[1757668684974,4.20203378,237.98,237.97,0.03]
[1757668685772,36.86203378,237.98,237.97,0.03]
[1757668685949,4.20203378,237.98,237.97,0.03]
[1757668687942,37.52203378,237.98,237.97,0.03]
[1757668689562,66.3299152,237.98,237.91,0.1]
[1757668689760,4.20291682,237.93,237.91,0.1]
[1757668689966,36.11898687,237.92,237.91,0.1]
[1757668690139,36.11898687,237.92,237.91,0.79]
[1757668690562,36.11898687,237.92,237.91,0.1]
[1757668691167,39.64953891,237.92,237.91,0.1]
[1757668692056,43.85263238,237.92,237.91,0.1]
[1757668692257,40.98208034,237.92,237.91,0.1]
[1757668692458,45.68928329,237.92,237.91,0.1]
[1757668693257,40.98208034,237.92,237.91,0.1]
[1757668694948,51.48981403,237.92,237.84,0.69]
[1757668695165,3.45898687,237.85,237.84,0.69]
[1757668695361,36.11898687,237.85,237.81,0.79]
[1757668695559,3.45898687,237.82,237.81,0.79]
[1757668695763,36.11898687,237.82,237.81,0.79]
[1757668696166,40.32384768,237.82,237.81,0.79]
[1757668696576,36.11898687,237.82,237.81,0.79]
[1757668696954,36.13898687,237.82,237.81,0.79]
[1757668698865,3.45898687,237.82,237.81,0.79]
[1757668699273,16.35344947,237.82,237.81,0.79]
[1757668699471,3.45898687,237.82,237.81,0.79]
[1757668699680,36.13898687,237.82,237.81,0.79]
[1757668700355,131.1,237.88,237.81,0.79]
[1757668700555,3.45898687,237.84,237.81,0.79]
[1757668700871,32.68,237.83,237.81,0.79]
[1757668701064,32.68,237.83,237.82,0.69]
[1757668701860,3.45898687,237.84,237.82,0.69]
[1757668702074,32.68,237.83,237.82,0.69]
[1757668702271,45.57140011,237.83,237.82,0.69]
[1757668702478,12.89140011,237.83,237.82,0.69]
[1757668702781,3.45898687,237.84,237.82,0.69]
[1757668703765,32.68,237.83,237.82,0.69]
[1757668703970,3.45898687,237.84,237.82,0.69]
[1757668704367,3.45898687,237.84,237.82,0.81]
[1757668704568,32.68,237.83,237.82,0.12]
[1757668705475,3.45898687,237.84,237.82,0.8]
[1757668705674,32.68,237.83,237.82,0.8]
[1757668706556,48.86656665,237.83,237.82,0.8]
[1757668707680,135.30395446,237.88,237.82,5.00486081]
[1757668707681,131.1,237.88,237.82,5.00486081]
[1757668707867,36.13898687,237.87,237.82,5.00486081]
[1757668708067,36.13898687,237.87,237.83,0.68]
[1757668708272,36.13898687,237.87,237.84,0.68]
[1757668709664,36.13898687,237.87,237.85,26.68]
[1757668709665,12.67000196,237.87,237.85,26.68]
[1757668709859,12.67000196,237.87,237.86,0.68]
[1757668710362,32.71,237.91,237.86,0.68]
[1757668710777,32.71,237.91,237.87,4.20397696]
[1757668711061,32.71,237.91,237.85,26.0]
[1757668711062,0.69,237.9,237.85,26.0]
[1757668711256,0.69,237.9,237.85,0.68]
[1757668711257,36.13898687,237.89,237.85,0.68]
[1757668711476,3.45898687,237.87,237.82,0.12]
[1757668711675,3.45898687,237.85,237.82,0.12]
[1757668711878,32.68,237.84,237.82,0.12]
[1757668712480,4.14898687,237.83,237.82,0.12]
[1757668712673,0.69,237.83,237.82,0.12]
[1757668712866,8.35367088,237.83,237.82,0.12]
[1757668713596,41.03367088,237.83,237.82,0.12]
[1757668714369,39.7926904,237.83,237.82,0.12]
[1757668718991,4.89468401,237.83,237.82,0.12]
[1757668719287,39.7926904,237.83,237.82,0.12]
[1757668719463,6.4226904,237.83,237.82,0.12]
[1757668719763,39.1026904,237.83,237.82,0.12]
[1757668720571,39.7926904,237.83,237.82,0.12]
[1757668720787,7.1126904,237.83,237.82,0.12]
[1757668720985,6.4226904,237.83,237.82,0.12]
[1757668721401,7.1126904,237.83,237.82,0.12]
[1757668721564,39.7926904,237.83,237.82,0.12]
[1757668721767,39.1026904,237.83,237.82,0.12]
[1757668721969,2.21800639,237.83,237.82,0.12]
[1757668722205,34.89800639,237.83,237.82,0.12]
[1757668723495,6.4226904,237.83,237.82,0.12]
[1757668723682,39.1026904,237.83,237.82,0.12]
[1757668725296,39.7926904,237.83,237.82,0.12]
[1757668727516,6.4226904,237.83,237.82,0.12]
[1757668727811,39.1026904,237.83,237.82,0.12]
[1757668729278,2.21800639,237.83,237.82,0.12]
[1757668729475,34.89800639,237.83,237.82,0.12]
[1757668729689,32.68,237.83,237.82,0.12]
[1757668729890,34.89800639,237.83,237.82,0.12]
[1757668731599,39.1026904,237.83,237.82,0.12]
[1757668733504,34.89800639,237.83,237.82,0.12]
[1757668733794,39.1026904,237.83,237.82,0.12]
[1757668734096,39.7926904,237.83,237.82,0.12]
[1757668734899,7.1126904,237.83,237.82,0.12]
[1757668735096,39.7926904,237.83,237.82,0.12]
[1757668737689,37.57468401,237.83,237.82,0.12]
[1757668737889,39.7926904,237.83,237.82,0.12]
[1757668738093,39.1026904,237.83,237.82,0.12]
[1757668738902,39.7626904,237.83,237.82,0.12]
[1757668740611,131.1,237.85,237.82,0.12]
[1757668740909,2.21800639,237.84,237.82,0.81]
[1757668741310,35.55800639,237.83,237.82,0.12]
[1757668741613,39.7626904,237.83,237.82,0.12]
[1757668742210,37.54468401,237.83,237.82,0.12]
[1757668742393,39.7626904,237.83,237.82,0.12]
[1757668746120,131.1,237.85,237.82,0.81]
[1757668746294,34.87800639,237.84,237.82,0.81]
[1757668746608,32.66,237.83,237.82,0.12]
[1757668747796,32.66,237.83,237.82,0.81]
[1757668748989,131.1,237.85,237.82,5.01486081]
[1757668749409,131.1,237.85,237.83,0.69]
[1757668749917,32.66,237.84,237.82,4.32486081]
[1757668750416,32.66,237.84,237.83,0.69]
[1757668751494,32.66,237.84,237.83,4.89468401]
[1757668751693,131.1,237.85,237.83,4.89468401]
[1757668751901,32.66,237.84,237.83,4.20468401]
[1757668752428,32.66,237.84,237.83,4.89468401]
[1757668752913,4.20364741,237.89,237.83,4.89468401]
[1757668753115,32.66,237.88,237.83,4.89468401]
[1757668753314,32.66,237.88,237.84,4.89445662]
[1757668753704,131.1,237.9,237.85,0.69]
[1757668754017,12.49757425,237.91,237.85,0.69]
[1757668754393,32.66,237.9,237.85,0.69]
[1757668754794,12.49757425,237.91,237.85,0.69]
[1757668755003,32.66,237.9,237.85,0.69]
[1757668755519,32.66,237.9,237.86,4.2041537]
[1757668755717,32.66,237.9,237.87,0.69]
[1757668755919,32.66,237.9,237.88,0.69]
[1757668757203,32.66,237.9,237.88,4.89376783]
[1757668757703,32.66,237.9,237.88,4.20376783]
[1757668758108,32.66,237.9,237.87,4.20397348]
[1757668758410,32.66,237.9,237.87,4.89397348]
[1757668761822,32.66,237.9,237.85,30.20416037]
[1757668762025,2.87800639,237.89,237.82,26.12]
[1757668762224,2.21800639,237.87,237.82,4.32484374]
[1757668762438,4.20359646,237.9,237.82,0.12]
[1757668762439,35.53800639,237.86,237.82,0.12]
[1757668762728,32.66,237.85,237.82,0.12]
[1757668762932,2.21800639,237.84,237.82,0.12]
[1757668763102,32.66,237.83,237.82,0.12]
[1757668763516,33.32,237.83,237.82,0.12]
[1757668763829,32.66,237.83,237.82,4.32486081]
[1757668764020,32.66,237.83,237.82,5.01486081]
[1757668764532,32.66,237.83,237.82,4.32486081]
[1757668764707,32.66,237.83,237.82,0.12]
[1757668768429,32.66,237.83,237.82,4.97486081]
[1757668768726,32.64,237.85,237.82,4.97486081]
[1757668769429,33.32,237.85,237.82,4.32486081]
[1757668772749,0.68,237.84,237.82,4.32486081]
[1757668773037,0.68,237.83,237.82,4.32486081]
[1757668773543,33.32,237.85,237.82,4.32486081]
[1757668773719,0.68,237.84,237.82,4.32486081]
[1757668774046,32.64,237.85,237.82,0.12]
[1757668774047,0.68,237.83,237.82,0.12]
[1757668775827,4.88468401,237.83,237.82,0.12]
[1757668777526,37.52468401,237.83,237.82,0.12]
[1757668782258,4.88468401,237.83,237.82,0.12]
[1757668782448,37.52468401,237.83,237.82,0.12]
[1757668783528,4.88468401,237.83,237.82,0.12]
[1757668783743,37.52468401,237.83,237.82,0.12]
[1757668785054,131.1,237.85,237.82,4.9748159]
[1757668785055,163.74,237.85,237.82,4.9748159]
[1757668785440,163.74,237.85,237.83,0.65]
[1757668786453,163.74,237.85,237.82,4.3248159]
[1757668786955,163.74,237.85,237.82,4.9748159]
[1757668792256,0.68,237.89,237.84,4.20450723]
[1757668792459,32.64,237.88,237.84,4.20450723]
[1757668792679,0.68,237.87,237.84,4.20450723]
[1757668792844,32.64,237.86,237.84,4.20450723]
[1757668793450,33.32,237.87,237.84,4.20450723]
[1757668793855,0.68,237.86,237.84,4.20450723]
[1757668794242,0.68,237.86,237.82,4.97473074]
[1757668794445,0.68,237.85,237.82,4.32473074]
[1757668794844,0.7,237.84,237.82,4.32473074]
[1757668795047,32.62,237.85,237.82,4.32473074]
[1757668796143,0.7,237.84,237.82,4.32473074]
[1757668796344,32.62,237.85,237.82,4.32473074]
[1757668796570,33.32,237.85,237.82,4.32473074]
[1757668797067,32.62,237.85,237.82,4.32473074]
[1757668797645,0.7,237.84,237.82,0.12]
[1757668797849,0.7,237.83,237.82,0.12]
[1757668798363,33.32,237.83,237.82,0.12]
[1757668799380,37.52468401,237.83,237.82,0.12]
[1757668800476,32.62,237.84,237.82,0.8]
[1757668800641,32.62,237.84,237.82,0.12]
[1757668800843,0.7,237.84,237.82,0.12]
[1757668801046,32.62,237.83,237.82,0.12]
[1757668801261,37.52468401,237.83,237.82,0.12]
[1757668803668,40.98869505,237.83,237.82,0.12]
[1757668803979,37.52468401,237.83,237.82,0.12]
[1757668804177,33.32,237.83,237.82,0.12]
[1757668808573,131.1,237.85,237.82,5.00480923]
[1757668808880,32.62,237.84,237.82,5.00480923]
[1757668812400,33.32,237.84,237.82,0.12]
[1757668812606,0.7,237.83,237.82,0.12]
[1757668814598,4.90468401,237.83,237.82,0.12]
[1757668815275,8.36869505,237.83,237.82,0.12]
[1757668815779,4.90468401,237.83,237.82,0.12]
[1757668820098,21.96428906,237.83,237.82,0.12]
[1757668821673,8.36869505,237.83,237.82,0.12]
[1757668821880,40.96869505,237.83,237.82,0.12]
[1757668822395,37.50468401,237.83,237.82,0.12]
[1757668824873,4.90468401,237.83,237.82,0.12]
[1757668825095,37.50468401,237.83,237.82,0.12]
[1757668825706,40.96869505,237.83,237.82,0.12]
[1757668826199,8.36869505,237.83,237.82,0.12]
[1757668826381,37.50468401,237.83,237.82,0.12]
[1757668826589,36.80468401,237.83,237.82,0.12]